bitfinex/quotes_ETHUSD_20260310
["timestamp","ask_amount","ask_price","bid_price","bid_amount"]
[1773149805719,1.62003575,2036.5,2035.3,0.0491328]
[1773149805922,1.62003575,2036.5,2035.2,0.04913329]
[1773149806186,1.718,2036.6,2035.3,2.41280228]
[1773149806482,1.718,2036.6,2035.3,1.60826968]
[1773149806813,1.718,2036.6,2035.3,4.02107196]
[1773149807392,1.22759636,2036.5,2035.4,1.2282598]
[1773149807708,1.22757591,2036.6,2035.5,0.04912797]
[1773149807880,1.22757591,2036.6,2035.4,2.83652948]
[1773149808295,2.84733155,2037.0,2035.6,2.41280228]
[1773149808626,2.94323479,2037.2,2035.9,2.41280228]
[1773149808823,2.94323479,2037.2,2036.0,0.04446959]
[1773149809027,2.94323479,2037.2,2035.7,1.60826968]
[1773149809240,4.52459969,2037.2,2035.8,1.22801846]
[1773149809392,1.5813649,2037.1,2035.9,0.04911832]
[1773149809739,1.5813649,2037.1,2035.8,1.22801846]
[1773149809933,1.5813649,2037.1,2035.9,0.04911832]
[1773149810101,1.5813649,2037.1,2035.8,1.22801846]
[1773149810439,2.94323479,2037.2,2035.9,2.4619206]
[1773149810598,1.22715148,2037.3,2036.0,1.60826968]
[1773149811317,1.22715148,2037.3,2036.1,1.22783753]
[1773149811913,1.22715148,2037.3,2036.2,0.04911108]
[1773149812127,1.22715148,2037.3,2036.1,1.22783753]
[1773149812327,0.001,2036.4,2036.1,1.22783753]
[1773149812624,1.22715148,2037.3,2036.2,2.41280228]
[1773149812815,6.38079121,2037.6,2036.2,1.60826968]
[1773149812816,1.22699386,2037.5,2036.2,1.60826968]
[1773149813012,1.22699386,2037.5,2036.3,0.04910867]
[1773149813216,1.22699386,2037.5,2036.2,1.60826968]
[1773149813414,1.22699386,2037.5,2036.3,1.22771693]
[1773149813723,1.22697916,2037.6,2036.3,2.83598661]
[1773149813928,2.80834406,2037.6,2036.3,1.22771693]
[1773149815024,2.80834406,2037.6,2036.4,0.04910626]
[1773149815222,1.22697916,2037.6,2036.3,1.22771693]
[1773149815523,4.90763185,2037.7,2036.3,1.22771693]
[1773149815723,4.90763185,2037.7,2036.4,0.0239897]
[1773149815924,1.22687343,2037.7,2036.3,1.22771693]
[1773149816628,1.22687343,2037.7,2036.4,0.04910626]
[1773149817201,1.22687343,2037.7,2036.3,2.83598661]
[1773149818422,1.5813649,2037.6,2036.3,2.83598661]
[1773149819604,2.80841898,2037.4,2036.2,4.91086775]
[1773149819799,4.44804235,2037.3,2036.3,0.0156956]
[1773149820116,1.22705408,2037.4,2036.3,0.0156956]
[1773149820317,1.22693364,2037.6,2036.3,1.62396528]
[1773149820632,1.22693364,2037.6,2036.2,4.91086775]
[1773149820633,1.5813649,2037.5,2036.2,4.91086775]
[1773149820828,1.5813649,2037.5,2036.0,4.91110892]
[1773149820829,1.5813649,2037.5,2036.0,1.22789783]
[1773149820995,2.86722021,2037.4,2036.0,1.22789783]
[1773149821326,1.5813649,2037.5,2036.1,1.60826968]
[1773149821703,1.22711431,2037.3,2035.8,7.32365992]
[1773149821899,1.22711431,2037.3,2036.1,2.41206857]
[1773149822829,1.22663264,2038.1,2037.0,2.41206857]
[1773149823015,1.5813649,2038.0,2036.6,1.60826968]
[1773149823727,11.77853059,2038.3,2036.9,2.41206857]
[1773149823728,2.92757246,2038.3,2036.9,2.41206857]
[1773149824030,4.9064141,2038.2,2036.9,3.91091142]
[1773149824226,4.9064141,2038.2,2036.7,1.22747581]
[1773149824227,2.41206857,2038.1,2036.7,1.22747581]
[1773149824432,1.53717044,2038.0,2036.7,1.22747581]
[1773149824615,2.41206857,2037.8,2036.7,1.22747581]
[1773149824931,1.53717044,2038.0,2036.8,0.04909662]
[1773149825227,9.62536422,2038.2,2035.8,2.726801]
[1773149825228,3.94923901,2037.1,2035.8,2.726801]
[1773149825404,1.53717044,2037.1,2036.1,2.41206857]
[1773149825618,4.96982319,2037.5,2036.0,1.22789783]
[1773149825619,4.95755404,2037.4,2036.0,1.22789783]
[1773149825808,5.63807974,2037.3,2036.0,1.22789783]
[1773149825997,2.92289176,2037.2,2036.0,1.22789783]
[1773149826202,4.41096543,2037.2,2036.0,1.22789783]
[1773149826505,1.58626721,2037.2,2036.0,1.22789783]
[1773149827032,1.22711431,2037.3,2036.1,0.02829629]
[1773149827219,2.87714296,2037.2,2036.1,0.02829629]
[1773149827527,2.87714296,2037.2,2036.8,0.0011]
[1773149827729,1.22706697,2037.4,2036.8,0.0011]
[1773149827917,1.27615085,2037.4,2036.8,0.0011]
[1773149828118,1.22705408,2037.4,2036.8,0.0011]
[1773149828322,1.22786618,2037.8,2036.8,0.0011]
[1773149828635,2.41206857,2037.6,2036.8,0.0011]
[1773149828931,2.9300051,2037.5,2036.8,0.0011]
[1773149829138,2.88090833,2037.5,2036.8,0.0011]
[1773149829342,1.53717044,2037.7,2036.8,0.0011]
[1773149829499,2.88096313,2037.6,2036.8,0.0011]
[1773149829705,0.04909677,2037.5,2036.8,0.0011]
[1773149830038,1.22699386,2037.5,2036.8,0.0011]
[1773149830331,1.27609063,2037.5,2036.8,0.0011]
[1773149830532,1.22784456,2037.8,2036.8,0.0011]
[1773149830698,0.04909677,2037.7,2036.8,0.0011]
[1773149831138,2.93051158,2037.7,2036.8,0.0011]
[1773149831431,0.001,2037.8,2037.0,2.41206857]
[1773149831839,0.04909677,2038.2,2037.1,1.49884285]
[1773149832023,4.1084119,2038.5,2037.4,1.22705408]
[1773149832228,1.69,2038.6,2037.4,2.72589693]
[1773149832544,1.69,2038.6,2037.4,1.22705408]
[1773149832545,0.04909677,2038.5,2037.4,1.22705408]
[1773149832722,1.689,2038.4,2037.1,1.22723479]
[1773149832910,2.92936438,2038.3,2037.1,1.22723479]
[1773149833106,2.92936438,2038.3,2037.1,2.72607764]
[1773149833502,2.92936438,2038.3,2037.2,0.04908698]
[1773149834150,1.22657246,2038.2,2037.3,1.22711431]
[1773149834315,0.04909677,2038.1,2037.3,1.22711431]
[1773149834521,0.04909677,2038.1,2037.1,1.22719932]
[1773149834522,2.46116534,2038.1,2037.1,1.22719932]
[1773149834820,4.10460112,2038.2,2037.2,0.04908698]
[1773149834821,1.27566923,2038.2,2037.2,0.04908698]
[1773149835138,1.27566923,2038.2,2037.0,7.32100774]
[1773149835139,2.87808708,2038.1,2037.0,1.22725332]
[1773149835316,0.04909677,2038.0,2037.0,1.22725332]
[1773149835512,0.04909677,2038.0,2037.1,0.04908939]
[1773149835837,2.46116534,2038.0,2037.0,1.22725332]
[1773149836038,1.22675303,2037.9,2036.8,0.0011]
[1773149836238,0.04909677,2037.8,2036.8,0.0011]
[1773149836442,3.94923901,2037.5,2036.8,0.0011]
[1773149836621,2.41206857,2037.3,2035.9,4.91182947]
[1773149836828,2.87955643,2037.2,2036.0,1.22789783]
[1773149837215,4.56355643,2037.2,2036.0,3.6399664]
[1773149837417,4.56355643,2037.2,2035.7,6.4104342]
[1773149837418,6.82878131,2037.1,2035.7,1.22807879]
[1773149837725,1.684,2037.2,2036.0,2.41142862]
[1773149837912,2.87962332,2037.1,2035.8,1.49884285]
[1773149838112,1.22729504,2037.0,2035.9,1.24795574]
[1773149838307,1.22729504,2037.0,2035.9,1.27707647]
[1773149838509,2.88043062,2036.9,2035.9,1.22795815]
[1773149838941,2.88043062,2036.9,2035.7,4.91224193]
[1773149838942,4.41760106,2036.9,2035.7,4.91224193]
[1773149839141,1.53717044,2036.6,2035.6,1.2292311]
[1773149839344,4.56143062,2036.5,2035.6,0.0011]
[1773149839521,2.41142862,2036.1,2035.4,0.0011]
[1773149839722,2.41142862,2035.8,2035.4,0.0011]
[1773149840045,2.87675122,2035.7,2035.1,0.0011]
[1773149840219,1.22813912,2035.6,2035.1,0.0011]
[1773149841245,1.2281222,2035.7,2035.1,0.0011]
[1773149841543,1.22799674,2035.9,2035.1,0.0011]
[1773149841741,1.679,2036.0,2035.2,2.41142862]
[1773149841948,2.90690676,2036.0,2035.8,0.0011]
[1773149842130,5.31833538,2036.0,2035.1,0.0011]
[1773149842333,6.85550582,2036.0,2035.1,0.0011]
[1773149842538,1.53717044,2035.7,2035.1,0.0011]
[1773149842843,2.90690676,2036.0,2035.5,0.0011]
[1773149843426,2.41142862,2035.8,2035.3,0.0011]
[1773149844153,1.22807879,2035.7,2035.3,0.0011]
[1773149844353,1.679,2036.0,2035.3,0.0011]
[1773149846353,1.58141296,2036.0,2035.3,1.22942014]
[1773149846650,4.37060692,2036.5,2035.3,2.72826299]
[1773149847058,3.19209677,2036.5,2035.3,2.72826299]
[1773149847253,1.27751803,2036.8,2035.8,2.41142862]
[1773149847427,2.41142862,2036.4,2035.3,1.22942014]
[1773149847630,0.04909677,2036.5,2035.3,1.22942014]
[1773149847828,1.58626721,2036.5,2035.3,1.22942014]
[1773149848051,4.00005676,2036.5,2035.3,0.0011]
[1773149848258,1.27675341,2036.4,2035.3,0.0011]
[1773149848455,1.675,2036.3,2035.3,1.49994285]
[1773149848657,1.2275817,2036.6,2035.3,1.49994285]
[1773149848953,0.04909677,2036.5,2035.3,1.49994285]
[1773149849126,1.2275817,2036.6,2035.3,1.49994285]
[1773149849327,0.04909677,2036.5,2035.3,1.49994285]
[1773149849539,0.04909677,2036.6,2035.4,1.49884285]
[1773149849773,0.05009677,2036.8,2035.4,1.49884285]
[1773149850061,0.001,2036.8,2035.7,1.49884285]
[1773149850271,0.001,2036.8,2036.1,1.22783753]
[1773149850765,0.001,2036.8,2036.1,2.72668038]
[1773149850973,1.27622597,2037.3,2036.1,2.72668038]
[1773149851155,1.27622597,2037.3,2036.2,1.49884285]
[1773149851466,0.04909677,2037.3,2036.2,1.49884285]
[1773149852062,0.04909677,2037.3,2036.1,1.22783753]
[1773149852372,1.53717044,2037.1,2035.5,1.22819945]
[1773149852661,1.53717044,2036.9,2035.5,1.22819945]
[1773149852873,5.32500957,2037.0,2035.5,1.22819945]
[1773149852874,1.53717044,2036.7,2035.5,1.22819945]
[1773149853177,0.04909677,2036.6,2035.5,1.22819945]
[1773149853761,4.44828614,2036.6,2035.3,1.22938687]
[1773149854062,1.48070512,2036.5,2035.3,1.22937225]
[1773149854262,1.22771693,2036.3,2035.3,0.0011]
[1773149854464,0.04909677,2036.2,2035.3,0.0011]
[1773149854672,1.22771693,2036.3,2035.3,0.0011]
[1773149854875,2.89947581,2036.7,2035.3,1.41299186]
[1773149855171,0.04909677,2036.6,2035.7,0.0011]
[1773149855368,1.48070512,2036.5,2035.7,0.0011]
[1773149855568,0.04909677,2036.4,2035.7,0.0011]
[1773149856355,1.22771693,2036.3,2035.7,0.0011]
[1773149856567,0.04909677,2036.2,2035.5,0.0011]
[1773149857304,4.91086775,2036.4,2035.5,0.0011]
[1773149857305,1.27679303,2036.4,2035.5,0.0011]
[1773149858294,1.22777723,2036.2,2035.5,0.0011]
[1773149859028,1.276874,2036.2,2035.5,0.0011]
[1773149859325,1.126874,2036.2,2035.5,0.0011]
[1773149859484,1.07777723,2036.2,2035.5,0.0011]
[1773149860021,1.126874,2036.2,2035.5,0.0011]
[1773149860618,2.60757912,2036.2,2035.5,0.0011]
[1773149860994,1.48070512,2036.1,2035.5,0.0011]
[1773149861435,1.48070512,2036.0,2035.5,0.0011]
[1773149861736,1.126874,2036.2,2035.3,0.0003]
[1773149861737,3.89449467,2035.8,2035.3,0.0003]
[1773149862022,2.41378955,2035.5,2034.0,4.91641295]
[1773149862212,1.669,2035.7,2034.1,1.41189186]
[1773149862410,1.22819945,2035.5,2034.2,1.24952491]
[1773149862817,1.22819945,2035.5,2034.2,1.22898436]
[1773149863622,2.70890457,2035.5,2034.2,1.22898436]
[1773149863928,5.12269412,2035.5,2034.2,1.22898436]
[1773149864225,2.86849549,2035.4,2034.2,1.22898436]
[1773149864403,1.2283805,2035.2,2033.9,2.07533558]
[1773149864604,1.2283805,2035.2,2033.9,2.07537777]
[1773149864605,2.86849549,2035.1,2033.9,2.07537777]
[1773149864930,1.667,2035.0,2033.9,2.07537777]
[1773149865627,1.667,2035.0,2033.9,2.07537108]
[1773149865922,1.48070512,2034.9,2033.9,2.07537493]
[1773149866126,1.667,2035.0,2034.0,1.4503299]
[1773149866330,1.667,2035.0,2034.1,0.03914062]
[1773149866631,2.89552571,2035.0,2033.9,0.84621783]
[1773149866803,2.89552571,2035.0,2034.0,0.02022388]
[1773149867209,2.89552571,2035.0,2033.9,2.07535726]
[1773149867210,4.29683823,2035.0,2033.9,2.07535726]
[1773149867410,6.71062778,2035.0,2033.9,2.07535726]
[1773149867616,4.29683823,2035.0,2033.9,2.07535726]
[1773149867812,2.89552571,2035.0,2033.9,2.07535726]
[1773149868325,4.91343587,2035.3,2034.0,1.4503299]
[1773149868522,6.36384516,2035.3,2034.0,1.4503299]
[1773149868850,1.40131252,2034.5,2033.2,4.91811341]
[1773149868997,4.53648388,2034.4,2033.2,4.91811341]
[1773149869196,1.665,2034.4,2033.9,0.0011]
[1773149869402,2.41378955,2034.3,2033.6,0.0011]
[1773149869603,3.81510207,2034.3,2033.6,0.0011]
[1773149869907,3.81510207,2034.3,2033.1,1.39390102]
[1773149869908,2.41378955,2033.7,2033.1,1.39393119]
[1773149870110,1.664,2033.6,2033.1,0.1642847]
[1773149870309,2.41378955,2034.0,2033.1,1.39392396]
[1773149870310,2.69314929,2034.0,2033.1,1.39392396]
[1773149870508,1.22912648,2034.0,2033.1,1.39392396]
[1773149870741,1.664,2033.9,2033.1,1.39392396]
[1773149871315,1.664,2033.9,2033.1,1.39391878]
[1773149871538,4.07778955,2033.9,2033.1,0.1642847]
[1773149871749,4.07778955,2033.9,2032.1,2.72412369]
[1773149871750,1.40131252,2033.8,2032.1,2.72412369]
[1773149871905,1.663,2033.7,2032.3,1.4503299]
[1773149872326,1.663,2033.9,2032.3,1.4503299]
[1773149872499,1.22898436,2034.2,2032.6,1.4503299]
[1773149872943,1.663,2034.1,2032.6,1.4503299]
[1773149873239,1.22898436,2034.2,2032.7,1.4503299]
[1773149873450,1.22898436,2034.2,2032.4,1.23007282]
[1773149873451,6.57733585,2034.5,2033.0,1.4503299]
[1773149873618,0.04909677,2034.5,2033.0,1.4503299]
[1773149873818,0.04909677,2034.5,2033.1,1.4503299]
[1773149874048,1.662,2034.8,2033.1,1.4503299]
[1773149874266,0.04909677,2034.7,2033.4,1.4503299]
[1773149874561,1.662,2034.8,2033.6,1.4503299]
[1773149874843,0.04909677,2034.7,2033.6,1.4503299]
[1773149875255,2.88932544,2035.3,2033.7,1.4503299]
[1773149875557,1.661,2035.3,2033.7,1.4503299]
[1773149875777,2.93841951,2035.3,2033.7,1.4503299]
[1773149875935,1.40131252,2034.9,2033.5,1.22940742]
[1773149876120,2.41378955,2034.7,2033.5,1.22940742]
[1773149876327,0.04909677,2034.6,2033.5,1.22940742]
[1773149876525,1.27785075,2034.6,2033.4,4.9176297]
[1773149876991,1.40131252,2034.9,2033.5,1.4503299]
[1773149877128,0.04909677,2034.8,2033.5,1.4503299]
[1773149877439,3.86419884,2034.8,2033.5,1.4503299]
[1773149877638,0.04909677,2034.8,2033.5,1.4503299]
[1773149878162,0.04909677,2034.9,2033.5,1.4503299]
[1773149878463,5.04372404,2034.8,2033.6,1.22934697]
[1773149878670,0.04909677,2034.7,2033.6,1.22934697]
[1773149879326,2.62993449,2034.8,2033.6,1.22934697]
[1773149879662,2.41378955,2034.5,2033.5,1.22938181]
[1773149879965,3.10840929,2034.4,2033.2,1.22958882]
[1773149880262,1.45040929,2034.4,2033.2,1.22958882]
[1773149880459,1.22898436,2034.2,2033.2,1.22958882]
[1773149880662,1.22898436,2034.2,2032.4,2.41378955]
[1773149880663,0.04909677,2034.1,2032.8,1.22983077]
[1773149880965,2.41378955,2034.0,2032.8,1.22983077]
[1773149881262,2.41378955,2034.0,2032.2,6.34966202]
[1773149881263,3.81510207,2033.7,2032.3,6.37081961]
[1773149881481,1.40131252,2033.6,2032.3,6.37081961]
[1773149881766,1.40131252,2033.0,2031.7,1.23049662]
[1773149882123,1.40131252,2033.5,2031.8,1.4503299]
[1773149882324,1.657,2033.4,2033.3,0.0011]
[1773149882536,4.98286051,2033.8,2033.3,0.0011]
[1773149882537,1.22928652,2033.7,2033.3,0.0011]
[1773149882836,1.656,2033.7,2033.3,0.0011]
[1773149883435,0.04909677,2033.8,2033.3,0.0011]
[1773149883646,1.22913854,2034.0,2033.3,0.0011]
[1773149883836,0.04909677,2033.9,2033.3,0.0011]
[1773149884429,1.22898436,2034.2,2033.3,0.0011]
[1773149884660,0.04909677,2034.1,2033.3,0.0011]
[1773149885448,1.656,2034.3,2033.3,0.0011]
[1773149885649,0.04909677,2034.2,2033.3,0.0011]
[1773149885851,0.001,2034.8,2033.3,3.86624562]
[1773149886051,3.02656535,2035.8,2034.0,1.45135607]
[1773149886255,0.04909677,2035.7,2034.3,1.45135607]
[1773149886561,2.88260649,2036.5,2034.9,1.45135607]
[1773149886732,0.04909677,2036.4,2034.9,1.45135607]
[1773149886929,2.41378955,2036.2,2034.9,1.45135607]
[1773149887129,0.04909677,2036.4,2034.9,1.45135607]
[1773149887354,1.27763577,2036.6,2035.0,1.45135607]
[1773149887735,2.41378955,2036.1,2034.5,1.45135607]
[1773149887927,2.41378955,2036.1,2034.2,4.91545418]
[1773149887928,2.41378955,2035.8,2034.2,1.22898436]
[1773149888160,2.41378955,2035.5,2034.2,1.22898436]
[1773149888364,0.04909677,2035.4,2034.2,1.22898436]
[1773149888562,2.41378955,2035.4,2034.2,1.22898436]
[1773149888738,0.04909677,2035.3,2034.2,1.22898436]
[1773149888945,5.32680831,2035.5,2034.2,1.22898436]
[1773149889138,0.04909677,2035.5,2034.2,1.22898436]
[1773149889359,0.04909677,2035.5,2034.0,1.45135607]
[1773149889360,2.41378955,2035.2,2034.0,1.22906893]
[1773149889562,2.41378955,2035.2,2033.7,1.22928652]
[1773149889563,0.04909677,2035.1,2033.7,1.22928652]
[1773149889767,2.46288632,2035.1,2033.8,0.04916904]
[1773149889965,2.86452446,2035.0,2033.9,0.04916662]
[1773149890264,1.656,2035.4,2033.6,3.86514562]
[1773149890467,2.41378955,2034.9,2033.7,1.22928652]
[1773149890777,2.41378955,2033.9,2033.3,0.0011]
[1773149891261,1.656,2034.0,2033.3,1.23062555]
[1773149891464,2.86622108,2033.9,2033.3,0.0011]
[1773149891672,2.86622108,2033.9,2032.1,10.05846635]
[1773149891673,2.41378955,2033.6,2032.2,1.23019387]
[1773149891884,2.86622108,2033.5,2032.2,1.23019387]
[1773149892039,3.7853549,2033.6,2032.2,1.23019387]
[1773149892040,2.86622108,2033.4,2032.2,1.23019387]
[1773149892244,1.37156535,2033.6,2032.2,1.23019387]
[1773149892438,2.86379981,2033.5,2032.0,4.92077551]
[1773149892674,1.22946788,2033.4,2032.0,4.92077551]
[1773149893040,2.86359756,2033.3,2032.0,4.92077551]
[1773149893352,1.656,2033.2,2032.0,4.92077551]
[1773149893737,1.22946788,2033.4,2032.1,0.04921017]
[1773149893938,4.51888668,2033.3,2032.0,1.23031496]
[1773149894142,1.657,2033.3,2032.0,1.23031496]
[1773149894605,0.04909677,2033.7,2033.0,0.0011]
[1773149894919,0.05009677,2033.7,2033.0,0.0011]
[1773149895194,2.41378955,2033.4,2033.0,0.0011]
[1773149895364,2.41378955,2033.4,2032.8,0.0011]
[1773149895365,1.37156535,2033.4,2032.8,0.0011]
[1773149895971,2.85989333,2033.3,2032.8,0.0011]
[1773149896393,2.85989333,2033.3,2032.2,1.23018949]
[1773149896596,1.22958882,2033.2,2031.6,5.09864224]
[1773149896793,2.88658882,2033.2,2031.6,5.09864224]
[1773149897001,1.22956672,2033.3,2031.9,2.41378955]
[1773149897299,1.22956672,2033.3,2031.8,1.45135607]
[1773149897477,1.657,2033.6,2032.0,1.45135607]
[1773149897478,2.8863625,2033.6,2032.0,1.45135607]
[1773149897681,0.001,2033.7,2032.3,1.45135607]
[1773149897871,1.23029188,2033.7,2032.3,1.45135607]
[1773149898071,1.27938865,2033.7,2032.3,1.45135607]
[1773149898306,0.001,2033.7,2032.3,1.45135607]
[1773149898492,0.001,2033.7,2032.4,1.45135607]
[1773149898701,0.001,2033.7,2032.4,1.23007282]
[1773149898919,2.41378955,2033.5,2032.4,1.23007282]
[1773149899210,2.41378955,2033.5,2032.3,0.04920533]
[1773149899211,2.85755504,2033.4,2032.3,0.04920533]
[1773149899513,2.85755504,2033.4,2032.2,0.04920775]
[1773149900117,1.70609677,2033.6,2032.1,1.23025441]
[1773149900569,1.22940742,2033.5,2032.0,4.92110393]
[1773149900771,6.62372647,2033.6,2032.1,1.45135607]
[1773149900772,2.93545165,2033.6,2032.1,1.45135607]
[1773149900971,0.04909677,2033.6,2032.1,1.45135607]
[1773149901171,0.001,2033.7,2032.0,4.92110393]
[1773149901172,1.23031436,2033.7,2032.3,1.45135607]
[1773149901407,1.23031436,2033.7,2032.4,1.50055898]
[1773149901408,0.05009677,2033.7,2032.4,1.50055898]
[1773149901707,0.001,2033.7,2032.4,1.50055898]
[1773149902122,1.22883775,2034.5,2032.6,1.45135607]
[1773149902329,1.22883775,2034.5,2032.5,2.42141808]
[1773149902330,2.88574989,2034.6,2032.9,1.45135607]
[1773149902617,2.88574989,2034.6,2033.1,1.45135607]
[1773149902618,5.30716797,2034.6,2033.1,1.45135607]
[1773149902822,3.65016797,2034.6,2033.1,1.45135607]
[1773149903210,2.84656535,2035.0,2033.2,1.50053962]
[1773149903423,1.22851931,2035.0,2033.2,1.50053962]
[1773149903594,1.657,2035.1,2033.5,1.45135607]
[1773149903790,1.2282877,2035.4,2033.5,1.45135607]
[1773149904005,2.88617741,2035.6,2033.8,1.45135607]
[1773149904208,2.88615274,2035.6,2034.0,1.45135607]
[1773149904720,1.22844086,2035.1,2034.1,1.22904478]
[1773149905032,2.88617746,2035.6,2034.1,2.68040085]
[1773149905521,2.42141808,2034.7,2034.1,1.22904478]
[1773149905718,2.42141808,2034.7,2033.2,1.22958882]
[1773149905888,4.07841808,2035.0,2033.3,1.45135607]
[1773149906088,1.657,2035.0,2033.3,1.45135607]
[1773149906288,2.42141808,2034.8,2033.3,1.45135607]
[1773149906512,1.657,2035.0,2033.3,1.5005372]
[1773149906715,1.2285616,2034.9,2033.4,1.22946788]
[1773149906921,1.2285616,2034.9,2033.4,2.68082395]
[1773149907286,2.42141808,2034.8,2033.4,2.68082395]
[1773149907709,2.42141808,2034.8,2033.4,1.22946788]
[1773149907901,0.001,2034.5,2033.4,1.22946788]
[1773149908103,2.42241808,2034.5,2033.4,1.22946788]
[1773149908299,2.42241808,2034.5,2033.1,4.91842415]
[1773149908525,2.42241808,2034.5,2032.5,0.0011]
[1773149908526,2.42141808,2034.2,2032.6,2.68130785]
[1773149908692,1.22904478,2034.1,2032.6,2.68130785]
[1773149909594,2.42141808,2033.9,2032.7,0.04919565]
[1773149909793,2.42141808,2033.9,2032.6,1.22995178]
[1773149910004,2.42141808,2033.9,2032.7,0.04919565]
[1773149910204,1.657,2034.0,2032.6,1.22995178]
[1773149910411,2.42141808,2033.7,2032.6,1.22995178]
[1773149910812,1.22934697,2033.6,2032.5,0.0011]
[1773149911215,1.22934697,2033.6,2032.5,0.05030049]
[1773149911524,1.22934697,2033.6,2032.5,0.0011]
[1773149912027,2.60091232,2033.6,2032.5,0.0011]
[1773149912231,2.42141808,2033.1,2032.5,0.0011]
[1773149912525,4.07741808,2033.1,2032.3,0.0011]
[1773149913025,1.22970978,2033.0,2032.3,0.0011]
[1773149914421,1.33907001,2032.3,2030.5,1.23122383]
[1773149914597,2.42141808,2031.8,2030.5,1.23122383]
[1773149915044,2.42141808,2031.8,2030.4,4.92513395]
[1773149915045,1.23049662,2031.7,2030.4,4.92513395]
[1773149915275,2.42141808,2031.8,2030.4,4.92513395]
[1773149915544,2.42141808,2031.2,2030.1,1.23146643]
[1773149915709,2.42141808,2031.2,2029.6,4.92698617]
[1773149915710,2.42141808,2031.0,2029.5,1.2318305]
[1773149915898,2.42141808,2031.0,2029.3,1.33808847]
[1773149915899,2.99407001,2030.9,2029.3,1.23193071]
[1773149916099,2.42141808,2030.1,2029.3,1.23193071]
[1773149916319,2.42141808,2030.1,2029.3,1.28120878]
[1773149916520,2.42141808,2029.8,2029.0,0.23749742]
[1773149916718,2.42141808,2029.8,2029.0,1.469587]
[1773149916919,1.654,2030.0,2029.0,1.51887236]
[1773149917135,1.33907001,2030.4,2029.0,1.51887236]
[1773149917136,1.23130973,2030.4,2029.0,1.36887236]
[1773149917339,1.654,2030.6,2029.1,1.33808847]
[1773149917340,1.23125847,2030.5,2029.1,1.33808847]
[1773149917542,2.42141808,2030.7,2029.1,1.33808847]
[1773149917543,3.65253516,2030.7,2029.1,1.33808847]
[1773149917744,2.42141808,2030.1,2029.0,1.31963019]
[1773149917946,2.42141808,2030.1,2029.0,0.08749742]
[1773149917947,4.07541808,2030.1,2029.0,0.08749742]
[1773149918147,2.42141808,2029.8,2029.0,1.31962471]
[1773149918347,1.23111708,2030.7,2029.0,1.31962471]
[1773149918348,2.57018709,2030.7,2029.0,1.31962471]
[1773149918547,6.64560517,2030.7,2029.0,2.65771318]
[1773149918747,2.42141808,2030.4,2029.0,2.65771318]
[1773149918935,3.65274641,2030.4,2029.0,2.65771318]
[1773149919135,2.42141808,2030.1,2029.0,1.31962471]
[1773149919352,2.42141808,2030.4,2029.1,0.04928293]
[1773149919518,2.88515938,2030.7,2029.1,1.33808847]
[1773149919722,2.42141808,2030.3,2029.2,0.0011]
[1773149919962,2.42141808,2029.7,2029.2,0.0011]
[1773149920253,2.42141808,2029.7,2029.0,0.08749742]
[1773149920254,2.42141808,2029.7,2029.0,0.0011]
[1773149920758,1.653,2029.8,2029.0,0.05038536]
[1773149920929,2.42141808,2029.6,2029.0,0.0011]
[1773149921131,3.65319029,2029.6,2029.0,0.0011]
[1773149921330,2.42141808,2029.3,2028.7,0.0011]
[1773149921648,2.42141808,2029.3,2028.0,2.67770889]
[1773149921649,1.33907001,2029.5,2027.8,1.33808847]
[1773149921829,2.42141808,2029.6,2027.8,1.33808847]
[1773149921830,2.42141808,2029.3,2027.8,1.33808847]
[1773149922163,2.42141808,2029.0,2027.7,4.93149196]
[1773149922455,2.42141808,2028.7,2027.6,1.232924]
[1773149922822,1.653,2028.7,2027.5,0.04932182]
[1773149923020,4.22320491,2029.0,2027.2,1.33808847]
[1773149923265,2.42141808,2028.8,2027.3,0.04932669]
[1773149923437,2.42141808,2028.8,2027.2,1.33808847]
[1773149923765,1.33907001,2029.0,2027.3,0.04932669]
[1773149924062,1.33907001,2029.0,2027.3,1.33808847]
[1773149924235,2.42141808,2029.0,2027.4,1.33808847]
[1773149924553,2.42141808,2028.7,2027.4,1.33808847]
[1773149924966,3.65360703,2029.0,2027.6,1.2329848]
[1773149925365,3.76048809,2029.0,2027.7,0.04931696]
[1773149925666,2.42141808,2029.0,2027.6,1.2329848]
[1773149926044,1.33907001,2029.5,2027.6,1.2329848]
[1773149926045,2.57095038,2029.5,2027.7,1.38740543]
[1773149926246,2.42141808,2029.0,2027.6,1.2329848]
[1773149926451,2.42141808,2028.7,2027.6,1.2329848]
[1773149926744,1.35154866,2029.3,2027.6,1.2329848]
[1773149926745,2.42141808,2029.0,2027.6,1.2329848]
[1773149926930,3.77296674,2029.0,2027.6,1.2329848]
[1773149927132,1.23219478,2028.9,2027.4,6.28044916]
[1773149927375,6.6561415,2029.0,2027.4,6.28044916]
[1773149927673,2.42141808,2028.7,2027.3,4.93193923]
[1773149928581,2.88317476,2029.0,2027.4,1.34850993]
[1773149928582,2.42141808,2028.8,2027.4,1.34850993]
[1773149928872,2.42141808,2028.2,2027.0,1.23334977]
[1773149929071,2.42141808,2027.9,2026.5,1.23365408]
[1773149929279,2.42141808,2027.9,2025.6,3.93364177]
[1773149929280,2.42141808,2027.3,2025.8,4.93615574]
[1773149929572,1.35154866,2027.6,2025.9,1.34850993]
[1773149929745,6.63950159,2027.9,2026.0,1.34850993]
[1773149929945,7.99105025,2027.9,2026.0,1.34850993]
[1773149930149,6.63950159,2027.9,2026.1,1.34850993]
[1773149930463,2.42141808,2027.3,2025.8,4.93615574]
[1773149930767,1.35154866,2027.4,2025.8,4.93615574]
[1773149930970,2.42141808,2027.2,2025.8,4.93615574]
[1773149931176,1.23328893,2027.1,2025.8,4.93615574]
[1773149931344,2.42141808,2026.9,2025.8,4.93615574]
[1773149931870,2.42141808,2026.9,2025.3,1.48124403]
[1773149931871,2.42141808,2026.3,2025.3,4.93712605]
[1773149932275,1.649,2026.8,2025.3,4.93712605]
[1773149932471,2.42141808,2026.7,2025.3,4.93712605]
[1773149933103,2.42141808,2026.4,2025.3,4.93712605]
[1773149933309,2.42141808,2026.4,2025.2,1.23438502]
[1773149933310,3.6551454,2026.4,2025.2,1.23438502]
[1773149933507,3.6551454,2026.4,2024.8,0.1642847]
[1773149933508,2.42141808,2026.0,2024.9,1.23462887]
[1773149933876,0.065536,2026.9,2025.0,1.34850993]
[1773149933877,3.77296674,2026.9,2025.0,1.34850993]
[1773149934204,2.42141808,2026.8,2025.0,1.34850993]
[1773149934405,2.42141808,2027.0,2025.3,1.34850993]
[1773149935005,1.35154866,2027.2,2025.4,1.34850993]
[1773149935209,1.35154866,2027.2,2025.5,2.58277307]
[1773149935210,2.42141808,2027.0,2025.5,2.58277307]
[1773149935408,2.63461951,2027.9,2025.7,1.34850993]
[1773149935409,2.42141808,2027.3,2025.7,1.34850993]